Cogmind - Beta 16 @@@ ROGUE MODE // 2025.10.24 @ 00:16:49 Player: Zish Result: Destroyed by H-55 Commando with Gauss Rifle Performance ------------- Evolutions (2) 1000 Regions Visited (4) 800 Robots Destroyed (62) 310 Value Destroyed (1755) 1755 Prototype IDs (0) 0 Alien Tech Used (0) 0 Bonus (60) 60 TOTAL SCORE: 3925 Bonus ------- High Alert Combat Kills 11 Follower Combat Kills 49 Cogmind --------- Core Integrity 0/550 Matter 267/300 Energy 335/335 System Corruption 4% Temperature Warm (122) Movement Walking (190) Ox1 Location -8/Materials Parts ------- > --- POWER (2) -------- Deuterium Engine Light Nuclear Core > --- PROPULSION (4) --- Aluminum Leg Aluminum Leg > --- UTILITY (3) ------ ECM Suite > --- WEAPON (2) ------- Particle Gun Autogun > --- INVENTORY (5) ---- Hacking Suite Mace Peak State ------------ > --- POWER ------------ Ion Engine Light Nuclear Core > --- PROPULSION ------- Compact Wheel Compact Wheel Compact Wheel Compact Wheel > --- UTILITY ---------- Small Storage Unit ECM Suite Hardened Light Armor Plating > --- WEAPON ----------- Mini Grenade Launcher Mace > --- INVENTORY -------- Ion Engine ECM Suite Hacking Suite Assault Rifle [Rating: 16] Favorites ----------- Power Light Ion Engine Engine Light Ion Engine Power Core Light Nuclear Core Propulsion Aluminum Leg Leg Aluminum Leg Wheel Compact Wheel Flight Unit Flight Unit Utility Small Storage Unit Device ECM Suite Storage Small Storage Unit Protection Hardened Light Armor Plating Weapon Mace Energy Gun Particle Gun Ballistic Gun Assault Rifle Ballistic Cannon Light Cannon Launcher Mini Grenade Launcher Special Weapon Mining Laser Impact Weapon Mace Build | -11 -10 -10 -9 -8 ------- Run | Yrd Mat Min Mat Mat Slots Evolved 4 | . . . 2 2 Power 1 | . . . . 1 Propulsion 2 | . . . 1 1 Utility 1 | . . . 1 . Weapon . | . . . . . Parts Attached 45 | 7 1 1 12 24 Power 9 | 1 . . 2 6 Engine 7 | 1 . . 2 4 Core 2 | . . . . 2 Reactor . | . . . . . Propulsion 18 | 2 . . 6 10 Treads . | . . . . . Leg 7 | 2 . . 3 2 Wheel 4 | . . . . 4 Hover . | . . . . . Flight 7 | . . . 3 4 Utility 6 | 1 . . 1 4 Device 4 | . . . 1 3 Storage 1 | 1 . . . . Processor . | . . . . . Hackware . | . . . . . Protection 1 | . . . . 1 Artifact . | . . . . . Weapon 12 | 3 1 1 3 4 Energy Gun 1 | . . . . 1 Energy Cannon . | . . . . . Ballistic Gun 6 | 3 . . . 3 Ballistic Cannon 1 | . 1 . . . Launcher 2 | . . . 2 . Special Weapon 1 | . . 1 . . Impact Weapon 1 | . . . 1 . Slashing Weapon . | . . . . . Piercing Weapon . | . . . . . Special Melee Weapon . | . . . . . Unidentified Prototypes . | . . . . . Parts Lost 20 | . . . 6 14 Power 5 | . . . 1 4 Propulsion 10 | . . . 4 6 Utility 2 | . . . . 2 Weapon 3 | . . . 1 2 Highest Loss Streak 3 | . . . 2 3 To Critical Strikes . | . . . . . Average Backups 3 | 1 2 4 4 3 Power . | . 1 1 . . Propulsion . | . . . . . Utility . | . . . . 1 Weapon 1 | . 1 2 2 . Tool/Special . | . . . . . Unused Backups 2 | . . . 1 1 Power 1 | . . . 1 . Propulsion . | . . . . . Utility 1 | . . . . 1 Weapon . | . . . . . Tool/Special . | . . . . . Average Slot Usage (%) 76 | . 85 85 81 67 Engine 10 | . 14 14 11 7 Core 2 | . . . . 5 Leg 18 | . 28 28 27 5 Wheel 2 | . . . . 5 Flight 6 | . . . 2 12 Device 7 | . . . 10 10 Storage 8 | . 14 14 11 4 Ballistic Gun 4 | . 28 . . 4 Ballistic Cannon 3 | . . 14 3 . Launcher 5 | . . . 13 2 Special Weapon 2 | . . 13 . . Impact Weapon 3 | . . . 1 6 Peak Build Rating 16 | 6 6 6 10 16 Average Rating 9 | 4 5 5 8 11 On Entrance 5 | . 6 6 6 10 Avg Prop Armor Cover (%) . | . . . . . Naked Turns . | . . . . . Heaviest Build 26 | 12 13 13 18 26 Greatest Support 64 | 20 20 20 30 64 Greatest Overweight (x) 6 | . . . 4 6 Average Overweight (x) . | . . . . . Largest Inventory Capacity 8 | 8 8 8 8 8 Average Capacity 7 | 7 8 8 8 6 Most Carried 8 | 5 4 5 8 7 Average Carried 3 | 1 2 4 4 3 Final Capacity 8 | 8 8 8 8 5 Final Carried 5 | 2 2 5 1 2 Class Distribution -------------------- 89% | Mutant 8% | Scavenger-Mutant Dominant Class ---------------- Mutant | -10/Materials Mutant | -10/Mines Mutant | -9/Materials Mutant | -8/Materials Resources | -11 -10 -10 -9 -8 ----------- Run | Yrd Mat Min Mat Mat Matter Collected 1464 | 225 95 147 450 547 Remotely . | . . . . . Salvage Created 1821 | . 74 42 465 1240 Parts 85 | . . 3 49 33 Haulers Intercepted 1 | . . . 1 . Recyclers Shooed 2 | . . . . 2 Parts Field Recycled . | . . . . . Retrieved Matter . | . . . . . Parts Self-Destructed . | . . . . . Prevented . | . . . . . Parts Restored . | . . . . . Kills | -11 -10 -10 -9 -8 ------- Run | Yrd Mat Min Mat Mat Combat Hostiles Destroyed 43 | . 1 2 19 21 Melee 10 | . . . 1 9 Guns 2 | . 1 . . 1 Cannons 6 | . . 2 4 . AOE 17 | . . . 14 3 Classes Destroyed 12 | . 2 1 7 2 Worker 3 | . . . 3 . Builder 2 | . . . 1 1 Tunneler 1 | . . . 1 . Hauler 1 | . . . 1 . Recycler 7 | . . . 1 6 Watcher 5 | . 1 . 3 1 Swarmer 10 | . . 1 6 3 Grunt 21 | . 1 1 6 13 Brawler 1 | . . . . 1 Duelist 1 | . . . 1 . Sentry 9 | . . . 6 3 Hunter 1 | . . . . 1 Best Kill Streak 7 | . 2 1 7 4 Combat Bots Only 4 | . 1 1 4 4 Max Kills in Single Turn 4 | . 1 1 4 2 Gunslinging . | . . . . . Exploded 2 | . . . 2 2 Melee 1 | . . . 1 1 Uniques/NPCs Destroyed . | . . . . . Combat | -11 -10 -10 -9 -8 -------- Run | Yrd Mat Min Mat Mat Hostile Shots Fired 284 | . 20 17 81 166 Missed 82 | . 9 3 26 44 Hits 202 | . 11 14 55 122 Projectile 202 | . 11 14 55 122 Critical Strikes 5 | . . . 2 3 Damage Taken 2755 | . 172 133 687 1763 Core 822 | . 33 38 185 566 Absorbed by Shields . | . . . . . Regen/Repaired (Parts) 17 | . . . . 17 Core Remaining (%) 74 | 100 . 71 53 . Volleys Fired 102 | . 18 19 47 18 Largest 2 | . 2 1 2 2 Hottest 88 | . 40 30 63 88 Shots Fired 146 | . 36 19 60 31 Gun 63 | . 36 . . 27 Cannon 42 | . . 19 23 . Launcher 41 | . . . 37 4 Special . | . . . . . Kinetic 96 | . 36 19 23 18 Thermal 9 | . . . . 9 Explosive 41 | . . . 37 4 Electromagnetic . | . . . . . Robot Hit Streak 9 | . 4 2 9 5 Robot Miss Streak 6 | . 4 6 4 4 Penetration Max . | . . . . . Secondary Targets . | . . . . . Shots Hit Robots 142 | . 19 5 41 77 Core Hits 73 | . 4 2 40 27 Critical Kills 5 | . . . 1 4 Critical Parts Destroyed 12 | . . . . 12 Critical Strikes 21 | . . . 2 19 Blast 1 | . . . 1 . Smash 20 | . . . 1 19 Melee Attacks 100 | . . . 4 96 Impact 100 | . . . 4 96 Slashing . | . . . . . Piercing . | . . . . . Sneak Attacks 7 | . . . . 7 Combat Hostiles . | . . . . . Follow-up Attacks . | . . . . . Damage Inflicted 5041 | . 231 102 2044 2664 Guns 438 | . 231 . . 207 Cannons 307 | . . 102 205 . Explosions 2101 | . . . 1749 352 Melee 2195 | . . . 90 2105 Ramming . | . . . . . Kinetic 715 | . 231 102 205 177 Thermal 30 | . . . . 30 Explosive 2101 | . . . 1749 352 Electromagnetic . | . . . . . Impact 2195 | . . . 90 2105 Slashing . | . . . . . Piercing . | . . . . . Highest Corruption 4 | . . . . 4 Average Corruption 4 | . . . . 4 Corruption Purged . | . . . . . Corruption Blocked . | . . . . . Effects 21 | . . . . 21 Message Errors 6 | . . . . 6 Matter Fused 6 | . . . . 6 Heat Flow Errors 2 | . . . . 2 Energy Discharges 1 | . . . . 1 Parts Rejected 1 | . . . . 1 Data Loss (minor) 2 | . . . . 2 Data Loss (major) 2 | . . . . 2 Misfires 1 | . . . . 1 Overload Shots . | . . . . . Overflow Damage 585 | . . . 17 568 Projectiles . | . . . . . Explosions 17 | . . . 17 . Melee 568 | . . . . 568 Knockbacks 5 | . . . . 5 Impact 4 | . . . . 4 Kinetic . | . . . . . Secondary 1 | . . . . 1 Self-Inflicted Damage 70 | . . . 70 . Shots 3 | . . . 3 . Rammed . | . . . . . Targets Rammed . | . . . . . Kicked . | . . . . . Crushed . | . . . . . Highest Temperature 210 | . 2 1 24 210 Average Temperature 50 | . 2 1 7 80 Received Heat Transfer 870 | . 99 30 165 576 Siege Activations . | . . . . . Martial Activations . | . . . . . Shielding Activations . | . . . . . Robots Disrupted . | . . . . . Combat Hostiles . | . . . . . Robots Corrupted 10 | . . . . 10 Combat Hostiles 8 | . . . . 8 Parts Fried 13 | . . . . 13 Impact Corruptions 26 | . . . . 26 Robots Melted . | . . . . . Combat Hostiles . | . . . . . Parts Melted . | . . . . . Heat Transferred 74 | . . . . 74 Parts Sabotaged . | . . . . . Parts Stolen . | . . . . . Parts Stripped . | . . . . . Power Chain Reactions . | . . . . . Alert | -11 -10 -10 -9 -8 ------- Run | Yrd Mat Min Mat Mat Maximum Alert Level 2 | . . . 2 1 Low Security (%) 70 | 100 100 100 22 86 Level 1 27 | . . . 71 13 Level 2 1 | . . . 5 . Level 3 . | . . . . . Level 4 . | . . . . . Level 5 . | . . . . . High Security . | . . . . . Max Security . | . . . . . Peak Influence 415 | . 37 64 415 231 Initial 162 | . . . . 162 Average 142 | . 7 20 256 141 Influence Increases 1569 | . 37 142 771 619 Destroy 0b10 Robot/C 920 | . 20 100 380 420 Destroy 0b10 Robot/NC 95 | . 5 . 50 40 Destroy Leader 242 | . 12 20 108 102 Allied During Kill 7 | . . 7 . . Successful Hack 2 | . . . . 2 Disable Machine 90 | . . 15 75 . Destroy Structure 168 | . . . 158 10 Lose Combat Pursuer 45 | . . . . 45 Influence Decreases 1368 | . 37 142 386 803 Entered New Map 223 | . . . . 223 Time Decay 945 | . 37 142 326 440 Lost Part 200 | . . . 60 140 Squads Dispatched 7 | . . . 1 6 Investigation 2 | . . . . 2 Extermination . | . . . . . Reinforcement 5 | . . . 1 4 Assault . | . . . . . Garrison . | . . . . . Intercept . | . . . . . Searches Triggered . | . . . . . Construction Impeded 1 | . . . 1 . Haulers Reinforced . | . . . . . Active Scanning Responses . | . . . . . Cargo Convoy Interrupts . | . . . . . Stealth | -11 -10 -10 -9 -8 --------- Run | Yrd Mat Min Mat Mat Distress Signals 5 | . . . 2 3 Communications Jammed . | . . . . . Distress Signals . | . . . . . Times Spotted 81 | . 6 5 26 44 Peak Tracking Total 8 | . 2 3 4 8 Tactical Retreats 9 | . . . 2 7 ECM-based Alert Blocks 13 | . . . 4 9 Traps | -11 -10 -10 -9 -8 ------- Run | Yrd Mat Min Mat Mat Traps Triggered 1 | . . . . 1 Indirectly . | . . . . . Trap Hack Attempts . | . . . . . Triggered . | . . . . . Disarmed . | . . . . . Reprogrammed . | . . . . . Reused . | . . . . . Traps Extracted . | . . . . . Installed . | . . . . . Triggered . | . . . . . Machines | -11 -10 -10 -9 -8 ---------- Run | Yrd Mat Min Mat Mat Machines Disabled 6 | . . 1 5 . Max in Single Turn 1 | . . . 1 . Machines Repaired . | . . . . . Machines Dismantled . | . . . . . Machines Sabotaged . | . . . . . Overloaded Fab Kills . | . . . . . Hacking | -11 -10 -10 -9 -8 --------- Run | Yrd Mat Min Mat Mat Machines Accessed 3 | . . . . 3 Terminals 2 | . . . . 2 Fabricators . | . . . . . Repair Stations 1 | . . . . 1 Recycling Units . | . . . . . Scanalyzers . | . . . . . Garrison Access . | . . . . . Total Hacks 6 | . . . . 6 Successful 3 | . . . . 3 Failed 3 | . . . . 3 Catastrophic 2 | . . . . 2 Database Lockouts . | . . . . . Manual . | . . . . . Terminals 4 | . . . . 4 Fabricators . | . . . . . Repair Stations 2 | . . . . 2 Recycling Units . | . . . . . Scanalyzers . | . . . . . Garrison Access . | . . . . . Terminal Hacks 1 | . . . . 1 Alert Level 1 | . . . . 1 Fabricator Hacks . | . . . . . Repair Station Hacks 2 | . . . . 2 Scan Component 1 | . . . . 1 Repair 1 | . . . . 1 Recycling Unit Hacks . | . . . . . Scanalyzer . | . . . . . Garrison Access Hacks . | . . . . . Unauthorized Hacks . | . . . . . Terminals . | . . . . . Fabricators . | . . . . . Repair Stations . | . . . . . Recycling Units . | . . . . . Scanalyzers . | . . . . . Garrison Access . | . . . . . Data Cores Recovered . | . . . . . Used . | . . . . . Hacking Detections 1 | . . . . 1 Full Trace Events 1 | . . . . 1 Feedback Events . | . . . . . Feedback Blocked . | . . . . . Robot Schematics Acquired . | . . . . . Robots Built . | . . . . . Authchips . | . . . . . Time . | . . . . . Total Robot Build Rating . | . . . . . Part Schematics Acquired . | . . . . . Parts Built . | . . . . . Authchips . | . . . . . Time . | . . . . . Total Part Build Rating . | . . . . . Part Studies Acquired . | . . . . . Parts Repaired 1 | . . . . 1 Time 26 | . . . . 26 Parts Recycled . | . . . . . Recycled Matter . | . . . . . Retrieved Matter . | . . . . . Retrieved Components . | . . . . . Parts Scanalyzed . | . . . . . Part Schematics Acquired . | . . . . . Parts Damaged . | . . . . . Bothacking | -11 -10 -10 -9 -8 ------------ Run | Yrd Mat Min Mat Mat Used RIF Installer . | . . . . . Robots Hacked . | . . . . . Non-combat . | . . . . . Combat . | . . . . . Robot Hacks Applied . | . . . . . Relay Couplers Released . | . . . . . Fabnet Peak Effective % . | . . . . . Robots Rewired . | . . . . . Allies Hacked . | . . . . . Hacks Repelled . | . . . . . Allies | -11 -10 -10 -9 -8 -------- Run | Yrd Mat Min Mat Mat Total Allies 1 | . . 1 . . Largest Group 1 | . . 1 . . Highest-Rated Group 31 | . . 31 . . Highest-Rated Ally 31 | . . 31 . . Total Orders . | . . . . . Ally Attacks 10 | . . 10 . . Total Damage 107 | . . 107 . . Kills 3 | . . 3 . . Allies Corrupted . | . . . . . Allies Melted . | . . . . . Intel | -11 -10 -10 -9 -8 ------- Run | Yrd Mat Min Mat Mat Active Infowar (turns) 1660 | . . . 759 901 Traps 29 | . . . . 29 ECM 1660 | . . . 759 901 Robot Analysis Total . | . . . . . Derelict Logs Recovered . | . . . . . Drone Launches . | . . . . . Drone Recoveries . | . . . . . Exploration | -11 -10 -10 -9 -8 ------------- Run | Yrd Mat Min Mat Mat Turns Passed 2605 | 89 197 415 805 1099 Spaces Moved 1566 | 79 116 309 491 571 Core 59 | 33 . . . 26 Treads . | . . . . . Legs 1073 | 46 116 309 458 144 Wheels 88 | . . . . 88 Hover . | . . . . . Flight 346 | . . . 33 313 Fastest Speed 31 | 50 120 120 114 31 Average Speed 109 | 90 120 120 124 92 Slowest Speed 360 | 120 120 120 360 350 Overloaded Moves . | . . . . . Propulsion Burnouts . | . . . . . Robots Hopped . | . . . . . Potential Cave-ins 6 | . . . . 6 Cave-ins Triggered 1 | . . . . 1 Exploration Rate (%) 27 | 4 22 35 33 43 Regions Visited 4 Branch Regions 1 Pre-discovered Areas . | . . . . . Known Exits Taken . | . . . . . Unknown Exits Taken 4 | 1 1 1 1 . Scrap Searched 1 | . . 1 . . Spaces Dug 9 | . . . . 9 Terrain Destroyed 214 | . . . 197 17 Melee 9 | . . . . 9 Projectile . | . . . . . AOE 205 | . . . 197 8 Terrain Rammed . | . . . . . Walls Destroyed . | . . . . . Machines Disabled . | . . . . . Actions | -11 -10 -10 -9 -8 --------- Run | Yrd Mat Min Mat Mat Total 2145 | 96 138 334 624 953 Wait 244 | . . 2 45 197 Move 1561 | 78 115 308 490 570 Hop . | . . . . . Pick Up 52 | 9 2 3 13 25 Fast Attach . | . . . . . Attach 54 | 7 1 1 15 30 Detach 9 | . . 1 1 7 Swap 1 | 1 . . . . Drop 21 | 1 2 . 9 9 Fire 102 | . 18 19 47 18 Melee 100 | . . . 4 96 Ram . | . . . . . Kick . | . . . . . Crush . | . . . . . Escape Stasis 1 | . . . . 1 Rewire . | . . . . . Trap . | . . . . . Miscellaneous . | . . . . . Route ------- -11/Scrapyard -10/Materials -10/Mines -9/Materials -8/Materials History --------- Turn | Location | Event 12 | -11/Scrapyard | Discovered new exit (range 16) 90 | -11/Scrapyard | Entered Materials 209 | -10/Materials | Discovered new exit (range 14) 287 | -10/Materials | Entered Mines 290 | -10/Mines | Received a Mining Laser from a helpful Derelict 322 | -10/Mines | Build established: Mutant 353 | -10/Mines | Received a Rocket Launcher from a helpful Derelict 361 | -10/Mines | Discovered new exit (range 5) 702 | -10/Mines | Entered Materials 702 | -9/Materials | Evolved 2 slots: Propulsion x1, Utility x1 1480 | -9/Materials | Discovered new exit (range 16) 1507 | -9/Materials | Entered another Materials area 1507 | -8/Materials | Evolved 2 slots: Power x1, Propulsion x1 1783 | -8/Materials | Crushed by falling debris 2124 | -8/Materials | Core integrity fell below 50% 2136 | -8/Materials | Lost 3 parts (1p1n1w) 2171 | -8/Materials | Repaired Flight Unit 2364 | -8/Materials | Core integrity fell below 20% 2606 | -8/Materials | Destroyed by H-55 Commando with Gauss Rifle Last Messages --------------- 02498_ System corrupted: FCS attempts to trigger Particle Gun. 02498_ System corrupted: Particle Gun misfires. 02528_ System corrupted: Heat flow error (+100). 02539_ Triggered Alarm Trap. 02539_ An alarm sounds. 02539_ ALERT: Alarm triggered, dispatching investigation squad. 02541_ Connecting with Terminal... 02541_ ALERT: Suspicious activity at Terminal M001. Dispatching Investigation squad. 02549_ N|OY5EFATPLRK GDHKSD25KYVE 02570_ Slug penetrates Wall. 02579_ Critical hit (Burn: +37). 02581_ Slug penetrates G-47 Trooper. 02585_ Critical hit (Burn: +37). 02589_ G-47 Trooper destroyed. 02594_ System corrupted: Matter fused (-5). 02594_ Slug penetrates Wall. 02603_ Penetrated by Slug. Map ----- +----------------------------------------------------+ | | | | | | | | | | | | | | | | | | | | | | | | | | | | | | | ?????????????#######???????????????? | | ?????????????# #???????????????? | | ?????????????# #???????????????? | | ????########## """ #???????????????? | | ????# ## """ #???????????????? | | ????# ## """ #???????????????? | | ????# T ## % * #???????????????? | | ????# ####+###???????????????? | | ????# ## %% #???????????????? | | ????# ## #?#?????????????? | | ????# @%h # #?????????????? | | ???##+#####/##g + #??????????? | | ???# # # #??????????? | | ???# ### ### #??????????? | | ???# #?# #??? #??????????? | | ???# ### ###?# #??????????? | | ???########### #??###??????????? | | ######### * #???????????????? | | # !%+%= T ????????? | | # [#= ######+#????????? | | # # ## #???????????????? | | # # ####+###???????????????? | | # # #??????????????????????? | | # + #??????????????????????? | | # # #??????????????????????? | | # ## ##??????????????????????? | | # ## #???????????????????????? | | # ## #???????????????????????? | | # ## #???????????????????????? | | #######+## #???????????????????????? | | ??????# #???????????????????????? | | ??????# #???????????????????????? | | ??????# #???????????????????????? | | ??????# #???????????????????????? | | ??????# #???????????????????????? | +----------------------------------------------------+ Best States ------------- Heat Dissipation 31 Energy Generation 23 Energy Capacity 335 Matter Stores 300 Matter Capacity 300 Sight Range 16 Terrain Scan Density 10 ECM Strength 1 Armor Coverage 150 Evasion (%) 71 Item Schematics ----------------- None Robot Schematics ------------------ None Fabricated ------------ Nothing Repaired ---------- Flight Unit | 15% | -8/Materials Studied --------- None Alien Tech Used ----------------- None Achievements -------------- None Challenges ------------ None Game ------ Seed PhysicsPhasingMagmablaster Manual? 0 Play Time 00:27:04 Cumulative 14.3 hours Start 2025.10.23 @ 23:52:42 End 2025.10.24 @ 00:16:49 Sessions 1 Manual Loads 0 Difficulty Rogue Special Mode None Game No. 33 Rogue 33 Adventurer 0 Explorer 0 Win Type - Total 0 Types 0/0/0/0/0/0/0/0/0/0 Lore% 9 Gallery% 19 Achievement% 13 Wizard Run 0 Options --------- Layout 1 ASCII 0 Keyboard 0 Movement Arrows Keybinds 0 Fullscreen 1 Font 24/Smallcaps Map View 50x35 Zoom Use 0% Tactical HUD 1 Map Filters NONE Filters NONE Steam 1 RUN: 64b748d4-7854-4d07-bdae-c230f5c13667